Cogmind - Beta 12 @@@ ROGUE MODE // 2023.03.10 @ 18:16:07 Player: Heclapar Result: Destroyed by H-88 Terminator with KE Penetrator Performance ------------- Evolutions (9) 4500 Regions Visited (23) 4600 Robots Destroyed (493) 2465 Value Destroyed (26145) 26145 Prototype IDs (24) 480 Alien Tech Used (0) 0 Bonus (15432) 15432 TOTAL SCORE: 53622 Bonus ------- Triggered High Security 500 High Alert Combat Kills 9098 Follower Combat Kills 1829 Entered Garrisons 1600 Used RIF Installer 3500 Friendly Fire -1095 Cogmind --------- Core Integrity 0/1600 Matter 217/300 Energy 447/450 System Corruption 54% Temperature Cool (2) Movement Core (450) Ox8 Location -1/Access Parts ------- > --- POWER (3) -------- (None) > --- PROPULSION (6) --- (None) > --- UTILITY (12) ----- Large Storage Unit Energy Well Advanced Targeting Computer Advanced Target Analyzer Graphene Brace > --- WEAPON (4) ------- (None) > --- INVENTORY (15) --- Light Quantum Reactor Myomer Leg Myomer Leg Biometal Leg Centrium Leg Gamma Rifle Null Cannon Improved Proton Missile Launcher Advanced Remote Datajack Peak State ------------ > --- POWER ------------ Quantum Reactor Quantum Reactor Quantum Reactor > --- PROPULSION ------- Myomer Leg Biometal Leg Biometal Leg Centrium Leg Centrium Leg Centrium Leg > --- UTILITY ---------- Advanced Heat Sink Advanced Heat Sink Advanced Heat Sink Large Storage Unit High-capacity Storage Unit Advanced Target Analyzer Advanced Target Analyzer Advanced Target Analyzer Advanced Target Analyzer Improved Transmission Jammer Improved Reaction Control System Graphene Brace > --- WEAPON ----------- Gamma Rifle Phase Gun Enhanced Nova Cannon Enhanced Nova Cannon > --- INVENTORY -------- Light Quantum Reactor Light Quantum Reactor Myomer Leg Myomer Leg Biometal Leg Biometal Leg Centrium Leg Gamma Rifle Gamma Rifle Gamma Rifle Gamma Rifle Phase Gun Enhanced Quantum Rifle Enhanced Quantum Rifle Null Cannon Heavy Machine Gun Light Antimatter Cannon Linear Accelerator Improved Proton Missile Launcher Advanced Remote Datajack [Rating: 189] Favorites ----------- Power Neutrino Core Engine Improved Deuterium Engine Power Core Neutrino Core Reactor Quantum Reactor Propulsion Carbon-fiber Leg Treads Improved Heavy Treads Leg Carbon-fiber Leg Utility Advanced Heat Sink Device Advanced Heat Sink Storage High-capacity Storage Unit Processor Advanced Target Analyzer Hackware Relay Coupler [Grunt] Protection Improved Medium Armor Plating Weapon Gauss Rifle Energy Gun Particle Gun Energy Cannon Enhanced Nova Cannon Ballistic Gun Gauss Rifle Ballistic Cannon Light Antimatter Cannon Launcher Scatter Rocket Array Special Weapon Plasma Cutter Build | -11 -10 -9 -8 -8 -8 -8 -7 -7 -7 -7 -6 -6 -6 -5 -5 -5 -5 -4 -4 -3 -2 -2 -1 ------- Run | Jun Mat Mat Mat Gar Mat Gar Fac Gar Fac Gar Fac Gar Fac Fac Gar Fac Gar Fac Gar Res Res Tes Acc Slots Evolved 18 | . . 2 2 . . . 2 . . . 2 . . 2 . . . 2 . 2 2 . 2 Power 2 | . . . . . . . . . . . . . . 1 . . . . . 1 . . . Propulsion 4 | . . . . . . . 2 . . . . . . . . . . . . . . . 2 Utility 10 | . . . 2 . . . . . . . 2 . . 1 . . . 2 . 1 2 . . Weapon 2 | . . 2 . . . . . . . . . . . . . . . . . . . . . Parts Attached 616 | . 1 23 11 14 5 9 18 30 24 22 18 48 6 32 10 9 12 18 63 57 16 48 122 Power 64 | . . 4 2 2 1 . 1 2 3 1 . 5 . 3 1 . . 2 6 7 3 6 15 Engine 25 | . . 4 2 2 1 . 1 2 3 1 . 4 . 3 . . . . 1 1 . . . Core 4 | . . . . . . . . . . . . 1 . . . . . 2 1 . . . . Reactor 35 | . . . . . . . . . . . . . . . 1 . . . 4 6 3 6 15 Propulsion 112 | . 1 4 2 4 1 2 3 9 5 1 1 15 2 6 4 3 . 4 7 4 . 8 26 Treads 16 | . . . . . . . . 2 . . . . . . 4 3 . . 2 4 . . 1 Leg 96 | . 1 4 2 4 1 2 3 7 5 1 1 15 2 6 . . . 4 5 . . 8 25 Wheel . | . . . . . . . . . . . . . . . . . . . . . . . . Hover . | . . . . . . . . . . . . . . . . . . . . . . . . Flight . | . . . . . . . . . . . . . . . . . . . . . . . . Utility 157 | . . 6 4 2 1 4 7 7 4 7 3 9 2 6 4 1 1 3 16 18 5 10 37 Device 75 | . . 3 1 2 1 2 3 3 . . 1 4 2 3 2 . . 1 8 10 2 2 25 Storage 9 | . . 1 1 . . . 1 . . . . . . . . . . . 1 1 . 2 2 Processor 13 | . . . . . . . . . . . . . . . . . . . 2 4 2 . 5 Hackware 22 | . . . 1 . . . 1 1 1 5 2 2 . 1 1 1 1 2 2 1 . . . Protection 38 | . . 2 1 . . 2 2 3 3 2 . 3 . 2 1 . . . 3 2 1 6 5 Artifact . | . . . . . . . . . . . . . . . . . . . . . . . . Weapon 283 | . . 9 3 6 2 3 7 12 12 13 14 19 2 17 1 5 11 9 34 28 8 24 44 Energy Gun 89 | . . 4 2 3 2 1 2 2 1 . 3 9 2 5 1 1 1 1 6 7 1 10 25 Energy Cannon 16 | . . . . 1 . 1 . 3 . . . . . . . . . 1 1 . . 3 6 Ballistic Gun 104 | . . 5 1 2 . 1 4 5 9 7 6 5 . 7 . 2 5 3 16 14 3 4 5 Ballistic Cannon 16 | . . . . . . . . . . . . . . . . . 1 1 2 1 3 3 5 Launcher 28 | . . . . . . . 1 1 . 3 2 5 . 2 . . 2 1 3 2 1 2 3 Special Weapon 30 | . . . . . . . . 1 2 3 3 . . 3 . 2 2 2 6 4 . 2 . Impact Weapon . | . . . . . . . . . . . . . . . . . . . . . . . . Slashing Weapon . | . . . . . . . . . . . . . . . . . . . . . . . . Piercing Weapon . | . . . . . . . . . . . . . . . . . . . . . . . . Special Melee Weapon . | . . . . . . . . . . . . . . . . . . . . . . . . Unidentified Prototypes 16 | . . . 1 1 . . 2 . 1 . 1 . . . . 1 . . . 4 2 2 1 Corrupted Parts 22 | . . . . . . . . . . 1 . 2 . . 1 . 1 . 5 2 . 3 7 System Corruption 105 | . . . . . . . . . . 11 . 4 . . 9 . 1 . 18 9 . 22 31 Parts Lost 224 | . . 8 5 7 3 6 2 20 2 . 2 29 3 4 1 . 1 . 20 12 1 19 79 Power 24 | . . . . . 1 . . 1 1 . . 3 . . . . . . 5 1 . 2 10 Propulsion 52 | . . 1 1 1 1 2 . 11 . . 1 11 1 1 . . . . 3 2 . 1 15 Utility 69 | . . 2 1 2 . 2 . 5 1 . . 4 1 1 1 . . . 6 6 1 8 28 Weapon 79 | . . 5 3 4 1 2 2 3 . . 1 11 1 2 . . 1 . 6 3 . 8 26 Highest Loss Streak 16 | . . 3 4 3 3 3 2 8 1 . 2 8 3 1 1 . 1 . 6 5 1 5 16 To Critical Strikes 5 | . . . . . . . . . 1 . . . . . . . . . 1 . . 2 1 Average Slot Usage (%) 95 | . 85 91 98 99 99 97 99 92 94 100 99 95 93 99 99 100 99 100 94 88 84 91 91 Engine 3 | . 14 11 9 9 8 9 7 6 6 7 6 3 . 4 2 . . . . . . . . Core 1 | . . . . . . . . . . . . 2 6 5 5 5 5 5 3 . . . . Reactor 4 | . . . . . . . . . . . . . . . 2 5 5 5 5 13 13 12 11 Treads 4 | . . . . . . . . 3 10 . . . . . 14 23 23 19 3 8 8 1 . Leg 16 | . 28 21 17 18 18 17 30 20 14 30 25 23 25 22 8 . . 1 12 . . 13 22 Device 13 | . . 3 8 16 18 22 13 13 10 7 7 14 12 16 18 11 11 11 8 12 17 11 15 Storage 7 | . 14 11 14 9 9 9 7 7 7 7 6 6 6 5 5 5 5 5 6 4 7 9 8 Processor 2 | . . . . . . . . . . . . . . . . . . . 3 8 7 8 13 Hackware 9 | . . . 8 9 9 . 2 . 3 7 18 15 20 13 11 16 17 24 22 14 8 4 2 Protection 4 | . . 4 3 1 . 3 5 7 7 6 6 2 . 2 3 5 5 5 4 2 2 11 3 Energy Gun 13 | . 14 10 11 26 27 26 21 15 11 7 6 15 7 12 11 11 10 10 5 7 11 11 9 Ballistic Gun 9 | . 14 28 24 8 9 8 7 9 14 20 18 6 13 8 11 10 9 8 10 9 4 2 1 Naked Turns . | . . . . . . . . . . . . . . . . . . . . . . . . Heaviest Build 165 | 14 14 28 48 47 44 46 71 82 82 75 75 76 71 99 105 105 108 112 114 137 153 165 165 Greatest Support 175 | 20 20 20 20 30 30 30 55 55 77 77 75 70 60 66 100 110 110 110 150 150 150 150 175 Greatest Overweight (x) 27 | . . 1 2 2 1 2 1 27 2 . 1 4 1 1 1 1 . 1 1 1 1 1 1 Average Overweight (x) . | . . . 1 1 1 1 . 1 . . . 1 1 1 . . . . . . . . . Largest Inventory Capacity 20 | . 8 10 15 15 15 15 20 20 20 20 20 20 20 20 20 20 20 20 20 20 20 20 20 Average Capacity 18 | . 8 9 14 15 15 15 17 20 20 20 20 20 20 20 20 20 20 20 20 20 20 20 18 Most Carried 20 | . 8 10 14 15 15 15 20 20 20 20 20 20 20 20 20 20 20 20 20 20 20 20 20 Average Carried 17 | . 6 8 10 14 14 14 16 19 19 19 19 17 19 19 19 19 19 19 18 18 19 17 16 Final Capacity 20 | 8 8 10 15 15 15 15 20 20 20 20 20 20 20 20 20 20 20 20 20 20 20 20 15 Final Carried 20 | 6 8 10 14 15 15 14 20 20 20 20 20 19 20 20 20 20 20 20 20 19 20 16 9 Class Distribution -------------------- 27% | Scavenger-Gunner 20% | Scavenger-Tank 16% | Bothacker-Tank 10% | Bothacker-Mutant 9% | Scavenger-Mutant 9% | Bothacker-Gunner 5% | Botlord-Tank Dominant Class ---------------- Mutant | -10/Materials Scavenger-Gunner | -9/Materials Scavenger-Gunner | -8/Materials Scavenger-Gunner | -8/Garrison Scavenger-Gunner | -8/Materials Scavenger-Gunner | -8/Garrison Scavenger-Gunner | -7/Factory Bothacker-Mutant | -7/Garrison Bothacker-Tank | -7/Factory Bothacker-Tank | -7/Garrison Bothacker-Tank | -6/Factory Bothacker-Gunner | -6/Garrison Bothacker-Gunner | -6/Factory Bothacker-Tank | -5/Factory Bothacker-Tank | -5/Garrison Bothacker-Mutant | -5/Factory Botlord-Tank | -5/Garrison Botlord-Tank | -4/Factory Bothacker-Mutant | -4/Garrison Scavenger-Gunner | -3/Research Scavenger-Gunner | -2/Research Scavenger-Tank | -2/Testing Scavenger-Gunner | -1/Access Resources | -11 -10 -9 -8 -8 -8 -8 -7 -7 -7 -7 -6 -6 -6 -5 -5 -5 -5 -4 -4 -3 -2 -2 -1 ----------- Run | Jun Mat Mat Mat Gar Mat Gar Fac Gar Fac Gar Fac Gar Fac Fac Gar Fac Gar Fac Gar Res Res Tes Acc Matter Collected 15280 | 200 38 608 300 197 134 299 151 819 802 886 421 1558 . 605 437 251 481 324 1242 1467 446 1036 2578 Remotely . | . . . . . . . . . . . . . . . . . . . . . . . . Salvage Created 27641 | . 187 1159 905 723 653 966 415 1131 622 608 291 1368 . 713 179 624 1031 216 1346 3462 750 2856 7436 Parts 1188 | . 9 66 42 35 26 45 31 39 29 27 12 67 . 26 5 21 53 9 62 162 39 103 280 Haulers Intercepted 10 | . . 3 1 . . . 2 . . . . . . . . 2 . . . 1 . 1 . Recyclers Shooed 22 | . 2 2 1 . 2 . . . . . . . . 1 . 3 . . . 8 . 2 1 Parts Field Recycled . | . . . . . . . . . . . . . . . . . . . . . . . . Retrieved Matter . | . . . . . . . . . . . . . . . . . . . . . . . . Parts Self-Destructed . | . . . . . . . . . . . . . . . . . . . . . . . . Prevented . | . . . . . . . . . . . . . . . . . . . . . . . . Kills | -11 -10 -9 -8 -8 -8 -8 -7 -7 -7 -7 -6 -6 -6 -5 -5 -5 -5 -4 -4 -3 -2 -2 -1 ------- Run | Jun Mat Mat Mat Gar Mat Gar Fac Gar Fac Gar Fac Gar Fac Fac Gar Fac Gar Fac Gar Res Res Tes Acc Combat Hostiles Destroyed 444 | . 3 22 16 15 12 22 8 24 15 20 8 46 . 14 3 5 23 3 17 39 15 29 85 Guns 294 | . 3 21 16 15 11 20 8 16 14 8 5 30 . 10 3 4 13 1 12 27 9 8 40 Cannons 31 | . . . . . . . . . . . . . . . . . . . 3 . . 5 23 AOE 71 | . . 1 . . . . . 7 1 12 3 16 . 4 . . 9 2 2 9 4 1 . Classes Destroyed 20 | . 2 5 2 . 3 . 1 . . . . 2 . . . 1 . . 1 1 1 . 1 Worker 19 | . . 1 . . 1 . 1 . 2 . . . . . . . . . . 8 . 2 4 Builder 16 | . . . . . . . . . . . . . . . . 2 . . . 3 . 3 8 Tunneler 1 | . . . . . . . . . . . . . . . . . . . . . 1 . . Hauler 10 | . . 3 1 . . . 2 . . . . . . . . 2 . . . 1 . 1 . Recycler 13 | . 1 1 2 . 1 . . . 2 . . . . . . . . . . 1 . . 5 Mechanic 5 | . . 1 . . . . . . . . 1 . . 1 . . . . . . . 1 1 Operator 2 | . . . . . 1 . . . . . . . . 1 . . . . . . . . . Drone 1 | . . . . . . . . . . . . . . . . . . . 1 . . . . Watcher 3 | . . . . . 1 . . 1 . . . . . . . . . . . . . . 1 Swarmer 103 | . . 6 4 2 2 4 4 7 6 12 3 16 . 3 . . 11 2 5 2 11 . 3 Cutter 4 | . . . . . . . . . . . . 4 . . . . . . . . . . . Grunt 185 | . 3 10 7 9 7 15 . 10 4 6 5 12 . 5 2 4 8 1 2 16 . 15 44 Brawler 20 | . . . 1 . . 1 . 5 . 2 . 4 . 1 . . . . . 2 . . 4 Duelist 12 | . . . 1 . . . . . . 1 . . . . . . . . 1 5 . 2 2 Protector 3 | . . . . . . . . . . . . . . . . . . . . 1 . 1 1 Sentry 45 | . . 6 3 4 2 2 2 2 3 . . 8 . 2 . . . 1 1 5 2 . 2 Hunter 36 | . . . . . 1 . . . 1 1 . . . 3 . 1 1 . 6 2 . 9 11 Programmer 34 | . . . . . . . 2 . 1 . . 1 . . 1 1 2 . . 6 1 2 17 Heavy 1 | . . . . . . . . . . . . . . . . . . . . . . . 1 Behemoth 4 | . . . . . . . . . . . . 1 . . . . . . 1 1 1 . . Thug 1 | . . . . . . . . . . . . . . . . . 1 . . . . . . Best Kill Streak 15 | . 3 6 4 4 5 4 4 7 12 8 3 12 . 4 2 4 8 2 2 15 7 11 12 Combat Bots Only 12 | . 3 5 4 4 4 4 4 7 9 8 3 12 . 4 2 2 8 2 2 11 6 7 11 Max Kills in Single Turn 6 | . 1 2 2 2 2 2 3 3 2 5 2 4 . 3 1 1 2 2 1 6 2 3 3 Gunslinging 1 | . . . 1 1 . 1 1 1 . . . 1 . . . . . . . 1 . . . Exploded 4 | . . 1 . . . . . 3 1 4 2 4 . 3 . . 2 2 1 4 2 1 . Melee . | . . . . . . . . . . . . . . . . . . . . . . . . Uniques/NPCs Destroyed . | . . . . . . . . . . . . . . . . . . . . . . . . Combat | -11 -10 -9 -8 -8 -8 -8 -7 -7 -7 -7 -6 -6 -6 -5 -5 -5 -5 -4 -4 -3 -2 -2 -1 -------- Run | Jun Mat Mat Mat Gar Mat Gar Fac Gar Fac Gar Fac Gar Fac Fac Gar Fac Gar Fac Gar Res Res Tes Acc Damage Taken 40837 | . 154 1067 816 1045 431 962 542 2143 1197 611 571 3043 263 756 83 56 418 60 3147 3283 669 6111 13409 Core 4153 | . . 152 146 177 54 136 50 174 84 30 50 383 83 89 9 . 48 15 157 245 35 430 1606 Absorbed by Shields 7342 | . . . . 41 . 60 . . . . . . . 519 87 61 449 64 520 1653 689 1157 2042 Redirected to Shielding 238 | . . . . . . . . . . . . . . . . . . . 12 . . . 226 Regen/Repaired (Parts) 66 | . . . . . . . 66 . . . . . . . . . . . . . . . . Core Remaining (%) 67 | 100 100 62 . . . 6 . . . 51 . . 39 . . . 85 . 85 81 . 67 . Volleys Fired 1262 | . 18 59 42 43 27 61 22 70 42 33 20 74 . 48 8 23 37 18 112 112 32 92 269 Largest 4 | . 2 4 4 4 4 4 4 4 4 4 4 4 . 4 4 4 4 4 4 4 4 4 4 Hottest 403 | . 60 152 152 242 207 268 221 243 251 149 219 285 . 180 150 202 202 224 277 261 290 313 403 Shots Fired 3885 | . 36 194 143 159 106 184 67 230 144 84 62 224 . 158 35 66 108 40 271 361 106 280 827 Gun 3376 | . 36 194 143 158 106 180 67 205 138 73 56 215 . 151 35 64 96 28 194 349 86 217 585 Cannon 368 | . . . . 1 . 4 . 21 . . . . . . . . 2 8 23 4 15 53 237 Launcher 52 | . . . . . . . . 4 . 3 2 9 . 4 . . 8 1 3 4 5 4 5 Special 89 | . . . . . . . . . 6 8 4 . . 3 . 2 2 3 51 4 . 6 . Kinetic 1705 | . 18 146 116 48 27 62 24 102 117 55 38 72 . 66 16 30 49 15 133 211 35 90 235 Thermal 1632 | . . 35 27 111 79 122 43 124 21 18 18 143 . 69 19 27 25 14 122 91 24 85 415 Explosive 22 | . . . . . . . . 4 . 3 2 9 . 4 . . . . . . . . . Electromagnetic 486 | . 18 13 . . . . . . . . . . . 16 . 7 32 8 14 55 47 99 177 Robot Hit Streak 38 | . 11 22 10 15 10 12 8 20 7 8 6 13 . 14 5 14 15 6 37 38 11 21 20 Robot Miss Streak 13 | . 2 3 5 5 2 8 5 7 11 6 8 13 . 8 4 3 4 1 5 4 3 6 9 Penetration Max 1 | . . . . . . 1 . . 1 1 . . . . . 1 1 . . 1 . 1 1 Secondary Targets 49 | . . 4 5 3 3 6 2 5 4 1 1 5 . . 1 . 3 . . 5 . 1 . Max Gunslinging Chain 2 | . . 1 2 1 1 1 2 1 1 1 1 1 . . 1 . 1 . . 1 . 1 . Shots Hit Robots 2442 | . 26 124 83 101 70 113 37 145 91 56 32 141 . 106 19 40 49 23 173 270 68 165 510 Core Hits 1322 | . 8 57 47 40 28 43 18 71 75 66 31 155 . 64 10 18 33 6 72 124 36 74 246 Critical Kills 27 | . . 1 1 . . 1 . 1 . . . 1 . 1 . . . . 2 9 . 2 8 Critical Parts Destroyed 26 | . . . . . 1 . 1 . . . . . . . . 1 . . 1 16 . 2 4 Critical Strikes 191 | . . 4 3 9 4 1 2 2 1 2 1 4 . 4 2 2 . 1 6 40 8 22 73 Burn 61 | . . 3 2 9 3 . 1 1 . 2 1 3 . 3 2 1 . 1 1 6 . . 22 Meltdown 7 | . . . . . . . . 1 . . . . . . . . . . . . . 1 5 Destroy 56 | . . 1 1 . 1 1 1 . 1 . . 1 . 1 . 1 . . 4 32 1 3 7 Blast 18 | . . . . . . . . . . . . . . . . . . . . . 2 1 15 Corrupt 48 | . . . . . . . . . . . . . . . . . . . . 2 5 17 24 Sever 1 | . . . . . . . . . . . . . . . . . . . 1 . . . . Melee Attacks . | . . . . . . . . . . . . . . . . . . . . . . . . Impact . | . . . . . . . . . . . . . . . . . . . . . . . . Slashing . | . . . . . . . . . . . . . . . . . . . . . . . . Piercing . | . . . . . . . . . . . . . . . . . . . . . . . . Sneak Attacks . | . . . . . . . . . . . . . . . . . . . . . . . . Combat Hostiles . | . . . . . . . . . . . . . . . . . . . . . . . . Follow-up Attacks . | . . . . . . . . . . . . . . . . . . . . . . . . Damage Inflicted 65530 | . 340 1392 890 1411 1172 1819 810 3360 1846 1998 1062 5429 . 2450 428 1184 1748 477 3551 8742 2093 5903 17425 Guns 46588 | . 340 1366 890 1411 1159 1794 810 2648 1642 882 547 2630 . 1779 428 1054 1201 361 2437 6933 1362 4200 10714 Cannons 7074 | . . . . . . 25 . 125 . . . . . . . . . 32 444 . 426 740 5282 Explosions 11208 | . . 26 . . . . . 587 203 1116 515 2799 . 656 . 116 547 84 191 1792 305 893 1378 Melee . | . . . . . . . . . . . . . . . . . . . . . . . . Ramming 181 | . . . . . 13 . . . 1 . . . . 15 . 14 . . . 17 . 70 51 Kinetic 21854 | . 177 877 629 375 234 558 257 1083 1349 665 333 851 . 570 226 495 572 169 1477 4512 730 948 4767 Thermal 25591 | . . 370 261 1036 925 1261 553 1690 293 217 214 1779 . 927 202 451 403 164 1529 2266 568 2200 8282 Explosive 6653 | . . . . . . . . 587 203 1116 515 2799 . 656 . 116 . . . 661 . . . Electromagnetic 11251 | . 163 145 . . . . . . . . . . . 282 . 108 773 144 545 1286 795 2685 4325 Impact . | . . . . . . . . . . . . . . . . . . . . . . . . Slashing . | . . . . . . . . . . . . . . . . . . . . . . . . Piercing . | . . . . . . . . . . . . . . . . . . . . . . . . Highest Corruption 54 | . . . . . . . . 3 4 15 . 4 4 1 10 10 17 . 18 20 . 30 54 Average Corruption 12 | . . . . . . . . 2 3 4 . 3 4 1 6 10 15 . 14 12 . 23 28 Corruption Purged . | . . . . . . . . . . . . . . . . . . . . . . . . Corruption Blocked . | . . . . . . . . . . . . . . . . . . . . . . . . Effects 523 | . . . . . . . . 21 27 22 . 44 8 3 25 19 50 . 60 42 . 35 167 Message Errors 121 | . . . . . . . . 2 8 3 . 16 2 . 4 7 14 . 17 14 . 2 32 Matter Fused 118 | . . . . . . . . 6 9 10 . 9 3 1 6 5 16 . 13 8 . 9 23 Heat Flow Errors 41 | . . . . . . . . 3 2 2 . 6 . . 3 1 2 . 3 2 . 5 12 Energy Discharges 61 | . . . . . . . . 3 5 3 . 5 1 . 4 4 7 . 8 2 . 3 16 Parts Rejected 12 | . . . . . . . . . . . . 1 . . . . 1 . . 2 . 2 6 Parts Fused 6 | . . . . . . . . 1 . . . . 1 1 . . . . 1 . . . 2 Data Loss (minor) 54 | . . . . . . . . 3 3 2 . 4 1 . 3 1 5 . 7 4 . 3 18 Data Loss (major) 17 | . . . . . . . . 1 . 1 . 1 . 1 1 1 1 . 2 2 . 3 3 Misfires 13 | . . . . . . . . 1 . . . 1 . . 3 . 3 . 2 . . 1 2 Alerts 13 | . . . . . . . . . . 1 . 1 . . 1 . . . 2 3 . 2 3 Misdirections 16 | . . . . . . . . . . . . . . . . . . . . 2 . 2 12 Weapon Failures 51 | . . . . . . . . 1 . . . . . . . . 1 . 5 3 . 3 38 Overload Shots . | . . . . . . . . . . . . . . . . . . . . . . . . Overflow Damage 390 | . . . . . . . . 9 . 45 . 2 . . . . . 1 . 83 . 122 128 Projectiles 159 | . . . . . . . . . . . . . . . . . . . . . . 36 123 Explosions 227 | . . . . . . . . 9 . 45 . 2 . . . . . 1 . 83 . 82 5 Melee 4 | . . . . . . . . . . . . . . . . . . . . . . 4 . Knockbacks 32 | . . . . . . . . . . . . . . . . . . . 1 . . 5 26 Impact . | . . . . . . . . . . . . . . . . . . . . . . . . Kinetic 28 | . . . . . . . . . . . . . . . . . . . 1 . . 5 22 Secondary 4 | . . . . . . . . . . . . . . . . . . . . . . . 4 Self-Inflicted Damage 1180 | . . 35 . . . . . 95 95 151 . 146 . 22 . . 26 . 21 410 . 161 18 Shots 38 | . . 1 . . . . . 5 1 6 . 6 . 1 . . 3 . 2 8 . 3 2 Rammed 7 | . . . . . . . . . 1 . . . . . . 1 . . . 5 . . . Targets Rammed 21 | . . . . . 1 . . . 2 . . . . 2 . 1 . . . 5 . 7 3 Kicked 14 | . . . . . 1 . . . 1 . . . . 2 . . . . . . . 7 3 Crushed . | . . . . . . . . . . . . . . . . . . . . . . . . Highest Temperature 578 | . 66 287 304 265 223 302 267 296 356 207 279 350 . 256 173 211 143 118 303 378 166 484 578 Average Temperature 99 | . 41 93 108 90 85 69 113 93 97 37 75 86 . 85 71 22 41 43 79 141 61 120 118 Received Heat Transfer 6250 | . 75 375 315 513 180 471 60 693 252 168 252 739 . 140 24 16 40 4 107 229 52 302 1243 Effects 49 | . . . . . . . . 3 4 . . . . . . . . . . 11 . 16 15 Shutdowns 16 | . . . . . . . . . . . . . . . . . . . . 4 . 5 7 Energy Bleed 8 | . . . . . . . . . . . . . . . . . . . . 4 . . 4 Interference 21 | . . . . . . . . 3 4 . . . . . . . . . . 3 . 8 3 Matter Decay 2 | . . . . . . . . . . . . . . . . . . . . . . 2 . Short Circuit 1 | . . . . . . . . . . . . . . . . . . . . . . 1 . Damage (minor) 1 | . . . . . . . . . . . . . . . . . . . . . . . 1 Siege Activations . | . . . . . . . . . . . . . . . . . . . . . . . . Robots Corrupted 36 | . . . . . . . . . . . . . . . . . 1 . . 2 2 14 17 Combat Hostiles 36 | . . . . . . . . . . . . . . . . . 1 . . 2 2 14 17 Parts Fried 91 | . . . . . . . . . . . . . . . . . 1 . . 3 7 33 47 Impact Corruptions 1 | . . . . . . . . . . . . . . . . . . . . . . 1 . Robots Melted 13 | . . . . . 1 2 . 1 . . . . . . . 1 . 1 . 1 . 1 5 Combat Hostiles 12 | . . . . . 1 2 . 1 . . . . . . . 1 . . . 1 . 1 5 Parts Melted 96 | . . . 2 6 6 7 2 5 . . . 7 . 5 3 7 2 . 2 7 1 2 32 Heat Transferred 44736 | . . 1148 814 3180 2368 2886 1147 2262 444 666 444 3848 . 2035 518 851 618 372 3575 3754 703 2188 10915 Parts Sabotaged 9 | . . . . . . . . . . . . . . . . . . . . 1 . . 8 Parts Stolen . | . . . . . . . . . . . . . . . . . . . . . . . . Parts Stripped . | . . . . . . . . . . . . . . . . . . . . . . . . Power Chain Reactions 10 | . . 1 . . . . . . . . . . . . . . 1 . . 3 . 5 . Missiles Intercepted . | . . . . . . . . . . . . . . . . . . . . . . . . Alert | -11 -10 -9 -8 -8 -8 -8 -7 -7 -7 -7 -6 -6 -6 -5 -5 -5 -5 -4 -4 -3 -2 -2 -1 ------- Run | Jun Mat Mat Mat Gar Mat Gar Fac Gar Fac Gar Fac Gar Fac Fac Gar Fac Gar Fac Gar Res Res Tes Acc Peak Influence 1950 | . 145 419 317 835 554 778 518 1195 627 970 736 1857 974 484 832 581 1126 749 879 1124 940 969 1950 Initial 974 | . . 61 139 110 406 238 408 362 627 305 508 515 974 371 338 436 201 590 67 494 598 522 525 Average 649 | . 45 260 149 423 396 557 459 857 258 645 583 1208 931 298 615 335 780 266 466 722 756 735 1024 Maximum Alert Level 5 | . . 2 1 3 2 3 2 4 2 3 3 5 3 2 3 2 4 3 3 4 3 3 5 Low Security (%) 11 | . 100 21 77 18 . . . . 49 . . . . 26 . 29 1 63 15 . . . . Level 1 14 | . . 78 22 28 39 25 9 3 20 28 . . . 49 5 22 14 . 21 2 . . . Level 2 34 | . . . . 48 60 58 90 19 30 15 81 16 . 24 64 48 12 26 52 55 34 48 20 Level 3 28 | . . . . 4 . 16 . 69 . 56 18 26 100 . 29 . 62 9 10 36 65 51 37 Level 4 8 | . . . . . . . . 7 . . . 41 . . . . 9 . . 5 . . 33 Level 5 2 | . . . . . . . . . . . . 14 . . . . . . . . . . 7 High Security . | . . . . . . . . . . . . . . . . . . . . . . . 1 Max Security . | . . . . . . . . . . . . . . . . . . . . . . . . Squads Dispatched 71 | . 4 3 4 . 3 . 2 . 5 . 2 . . 6 . 2 . . . 8 2 8 22 Investigation 7 | . 1 1 . . 1 . . . . . . . . 1 . . . . . 3 . . . Extermination 9 | . . . . . . . 1 . 1 . . . . . . . . . . 2 . 1 4 Reinforcement 21 | . 3 2 1 . 1 . . . 2 . 1 . . 2 . 1 . . . . . 3 5 Assault 13 | . . . . . . . . . . . . . . . . . . . . 3 . 3 7 Garrison 21 | . . . 3 . 1 . 1 . 2 . 1 . . 3 . 1 . . . . 2 1 6 Intercept . | . . . . . . . . . . . . . . . . . . . . . . . . Searches Triggered . | . . . . . . . . . . . . . . . . . . . . . . . . Construction Impeded 4 | . . . . . . . . . 1 . . . . . . . . . . . . 1 2 Haulers Reinforced 2 | . . . . . . . . . . . 1 . . . . . . . . . . 1 . Active Scanning Responses . | . . . . . . . . . . . . . . . . . . . . . . . . Cargo Convoy Interrupts . | . . . . . . . . . . . . . . . . . . . . . . . . Stealth | -11 -10 -9 -8 -8 -8 -8 -7 -7 -7 -7 -6 -6 -6 -5 -5 -5 -5 -4 -4 -3 -2 -2 -1 --------- Run | Jun Mat Mat Mat Gar Mat Gar Fac Gar Fac Gar Fac Gar Fac Fac Gar Fac Gar Fac Gar Res Res Tes Acc Distress Signals 18 | . . 5 1 . 4 . 1 . 1 . . . . . . . . . . 3 . 1 2 Communications Jammed . | . . . . . . . . . . . . . . . . . . . . . . . . Distress Signals . | . . . . . . . . . . . . . . . . . . . . . . . . Times Spotted 672 | . 10 33 18 25 22 23 11 32 22 28 8 51 . 22 4 10 29 10 32 67 18 49 148 Peak Tracking Total 14 | . 5 5 4 5 6 6 6 6 6 6 4 9 . 4 3 5 8 4 6 14 5 6 12 Tactical Retreats 45 | . 1 . . . 3 2 . 2 1 1 1 2 . 2 . . 2 . 5 5 3 3 12 Traps | -11 -10 -9 -8 -8 -8 -8 -7 -7 -7 -7 -6 -6 -6 -5 -5 -5 -5 -4 -4 -3 -2 -2 -1 ------- Run | Jun Mat Mat Mat Gar Mat Gar Fac Gar Fac Gar Fac Gar Fac Fac Gar Fac Gar Fac Gar Res Res Tes Acc Traps Triggered 40 | . . 1 . 6 . 4 . 6 . 2 . 7 1 3 3 . . . 3 3 . 1 . Indirectly 1 | . . . . . . . . . . . . . . 1 . . . . . . . . . Trap Hack Attempts . | . . . . . . . . . . . . . . . . . . . . . . . . Triggered . | . . . . . . . . . . . . . . . . . . . . . . . . Disarmed . | . . . . . . . . . . . . . . . . . . . . . . . . Reprogrammed . | . . . . . . . . . . . . . . . . . . . . . . . . Reused . | . . . . . . . . . . . . . . . . . . . . . . . . Traps Extracted . | . . . . . . . . . . . . . . . . . . . . . . . . Installed . | . . . . . . . . . . . . . . . . . . . . . . . . Triggered . | . . . . . . . . . . . . . . . . . . . . . . . . Machines | -11 -10 -9 -8 -8 -8 -8 -7 -7 -7 -7 -6 -6 -6 -5 -5 -5 -5 -4 -4 -3 -2 -2 -1 ---------- Run | Jun Mat Mat Mat Gar Mat Gar Fac Gar Fac Gar Fac Gar Fac Fac Gar Fac Gar Fac Gar Res Res Tes Acc Machines Disabled 54 | . 1 1 . 1 1 1 . 6 6 3 2 4 . 4 2 3 3 . 3 2 2 5 4 Max in Single Turn 3 | . 1 1 . 1 1 1 . 1 3 1 1 1 . 2 1 1 1 . 1 1 1 1 1 Garrison Access 4 | . . . . . . . . . . . . . . . . . . . . . . 1 3 Garrison Relay 17 | . . . . 1 . 1 . 2 . 3 . 3 . . 2 . 3 . 2 . . . . Machines Repaired . | . . . . . . . . . . . . . . . . . . . . . . . . Machines Sabotaged . | . . . . . . . . . . . . . . . . . . . . . . . . Overloaded Fab Kills . | . . . . . . . . . . . . . . . . . . . . . . . . Hacking | -11 -10 -9 -8 -8 -8 -8 -7 -7 -7 -7 -6 -6 -6 -5 -5 -5 -5 -4 -4 -3 -2 -2 -1 --------- Run | Jun Mat Mat Mat Gar Mat Gar Fac Gar Fac Gar Fac Gar Fac Fac Gar Fac Gar Fac Gar Res Res Tes Acc Machines Accessed 57 | . 2 . 2 4 4 . 5 1 6 2 2 1 1 4 . 9 1 3 2 2 2 1 3 Terminals 33 | . 2 . 1 4 3 . 1 1 3 2 1 1 . 3 . 4 1 2 2 1 1 . . Fabricators 7 | . . . . . . . 1 . 1 . . . 1 . . 3 . . . . 1 . . Repair Stations 1 | . . . . . . . 1 . . . . . . . . . . . . . . . . Recycling Units . | . . . . . . . . . . . . . . . . . . . . . . . . Scanalyzers 4 | . . . . . . . 1 . 1 . . . . . . 1 . . . 1 . . . Garrison Access 12 | . . . 1 . 1 . 1 . 1 . 1 . . 1 . 1 . 1 . . . 1 3 Total Hacks 128 | . 4 . 4 8 10 . 11 1 15 4 5 2 1 12 . 20 2 12 3 6 4 1 3 Successful 54 | . . . 2 4 3 . 6 . 2 1 2 . 1 4 . 11 1 6 2 5 . 1 3 Failed 74 | . 4 . 2 4 7 . 5 1 13 3 3 2 . 8 . 9 1 6 1 1 4 . . Catastrophic 16 | . 1 . . 2 4 . . 1 4 1 . 1 . . . 1 . . . . 1 . . Database Lockouts . | . . . . . . . . . . . . . . . . . . . . . . . . Manual 38 | . . . . . 9 . 2 . 11 . 4 . . 5 . 7 . . . . . . . Terminals 88 | . 4 . 2 8 9 . 2 1 11 4 4 2 . 10 . 12 2 11 3 1 2 . . Fabricators 12 | . . . . . . . 2 . 2 . . . 1 . . 5 . . . . 2 . . Repair Stations 4 | . . . . . . . 4 . . . . . . . . . . . . . . . . Recycling Units . | . . . . . . . . . . . . . . . . . . . . . . . . Scanalyzers 9 | . . . . . . . 1 . 1 . . . . . . 2 . . . 5 . . . Garrison Access 15 | . . . 2 . 1 . 2 . 1 . 1 . . 2 . 1 . 1 . . . 1 3 Terminal Hacks 24 | . . . 1 4 2 . . . 1 1 . . . 2 . 4 1 5 2 1 . . . Prototype ID Bank 1 | . . . . . . . . . . . . . . . . 1 . . . . . . . Open Door 2 | . . . . 1 . . . . . 1 . . . . . . . . . . . . . Open DSF 1 | . . . . . . . . . . . . . . . . . . . . 1 . . . Emergency Access Points 3 | . . . . 1 . . . . . . . . . . . . 1 . 1 . . . . Unreport Threat 14 | . . . 1 . 2 . . . 1 . . . . 2 . 3 . 5 . . . . . Garrison Registry 1 | . . . . 1 . . . . . . . . . . . . . . . . . . . Patrol Navigation 2 | . . . . 1 . . . . . . . . . . . . . . 1 . . . . Fabricator Hacks 5 | . . . . . . . 1 . . . . . 1 . . 3 . . . . . . . Network Status 2 | . . . . . . . 1 . . . . . . . . 1 . . . . . . . Build 3 | . . . . . . . . . . . . . 1 . . 2 . . . . . . . Repair Station Hacks 2 | . . . . . . . 2 . . . . . . . . . . . . . . . . Scan Component 1 | . . . . . . . 1 . . . . . . . . . . . . . . . . Repair 1 | . . . . . . . 1 . . . . . . . . . . . . . . . . Recycling Unit Hacks . | . . . . . . . . . . . . . . . . . . . . . . . . Scanalyzer 5 | . . . . . . . . . . . . . . . . 1 . . . 4 . . . Insert Component 3 | . . . . . . . . . . . . . . . . 1 . . . 2 . . . Analyze 2 | . . . . . . . . . . . . . . . . . . . . 2 . . . Garrison Access Hacks 14 | . . . 1 . 1 . 2 . 1 . 1 . . 2 . 1 . 1 . . . 1 3 Unlock Access 8 | . . . 1 . 1 . 1 . 1 . 1 . . 1 . 1 . 1 . . . . . Seal Access 4 | . . . . . . . . . . . . . . . . . . . . . . 1 3 Coupler Status 2 | . . . . . . . 1 . . . . . . 1 . . . . . . . . . Unauthorized Hacks 4 | . . . . . . . 1 . . . 1 . . . . 2 . . . . . . . Terminals 4 | . . . . . . . 1 . . . 1 . . . . 2 . . . . . . . Botnet 4 | . . . . . . . 1 . . . 1 . . . . 2 . . . . . . . Fabricators . | . . . . . . . . . . . . . . . . . . . . . . . . Repair Stations . | . . . . . . . . . . . . . . . . . . . . . . . . Recycling Units . | . . . . . . . . . . . . . . . . . . . . . . . . Scanalyzers . | . . . . . . . . . . . . . . . . . . . . . . . . Garrison Access . | . . . . . . . . . . . . . . . . . . . . . . . . Data Cores Recovered 1 | . . . . . 1 . . . . . . . . . . . . . . . . . . Used . | . . . . . . . . . . . . . . . . . . . . . . . . Hacking Detections 44 | . 2 . 2 4 4 . 4 1 6 1 1 1 1 3 . 7 1 2 1 1 2 . . Full Trace Events 7 | . 2 . . 1 1 . . . . 1 . 1 . . . . . . . 1 . . . Feedback Events 1 | . . . . . . . . . . . . . . . . . . . . 1 . . . Corruption 1 | . . . . . . . . . . . . . . . . . . . . 1 . . . Feedback Blocked . | . . . . . . . . . . . . . . . . . . . . . . . . Robot Schematics Acquired . | . . . . . . . . . . . . . . . . . . . . . . . . Robots Built 1 | . . . . . . . . . . . . . . . . 1 . . . . . . . Authchips . | . . . . . . . . . . . . . . . . . . . . . . . . Time 76 | . . . . . . . . . . . . . . . . 76 . . . . . . . Total Robot Build Rating 5 | . . . . . . . . . . . . . . . . 5 . . . . . . . Part Schematics Acquired 2 | . . . . . . . . . . . . . . . . . . . . 2 . . . Parts Built 3 | . . . . . . . . . . . . . 1 . . 2 . . . . . . . Authchips . | . . . . . . . . . . . . . . . . . . . . . . . . Time 153 | . . . . . . . . . . . . . 47 . . 106 . . . . . . . Total Part Build Rating 17 | . . . . . . . . . . . . . 5 . . 12 . . . . . . . Parts Repaired 1 | . . . . . . . 1 . . . . . . . . . . . . . . . . Time 16 | . . . . . . . 16 . . . . . . . . . . . . . . . . Parts Recycled . | . . . . . . . . . . . . . . . . . . . . . . . . Recycled Matter . | . . . . . . . . . . . . . . . . . . . . . . . . Retrieved Matter . | . . . . . . . . . . . . . . . . . . . . . . . . Retrieved Components . | . . . . . . . . . . . . . . . . . . . . . . . . Parts Scanalyzed 3 | . . . . . . . . . . . . . . . . 1 . . . 2 . . . Part Schematics Acquired 2 | . . . . . . . . . . . . . . . . . . . . 2 . . . Parts Damaged . | . . . . . . . . . . . . . . . . . . . . . . . . Bothacking | -11 -10 -9 -8 -8 -8 -8 -7 -7 -7 -7 -6 -6 -6 -5 -5 -5 -5 -4 -4 -3 -2 -2 -1 ------------ Run | Jun Mat Mat Mat Gar Mat Gar Fac Gar Fac Gar Fac Gar Fac Fac Gar Fac Gar Fac Gar Res Res Tes Acc Used RIF Installer 7 | . . . . 1 . 1 . 1 . 1 . 1 . . 1 . 1 . . . . . . Hotswap 1 | . . . . . . . . 1 . . . . . . . . . . . . . . . Code Merge 1 | . . . . . . . . . . . . 1 . . . . . . . . . . . Zone Cloak 1 | . . . . . . 1 . . . . . . . . . . . . . . . . . Watcher Feeds 1 | . . . . . . . . . . 1 . . . . . . . . . . . . . Autooverride 2 | . . . . . . . . . . . . . . . 1 . 1 . . . . . . Robots Hacked 49 | . . . . . . . . . 2 5 3 . . 3 . 4 4 3 6 11 . 3 5 Non-combat 7 | . . . . . . . . . 2 . 2 . . . . 2 . 1 . . . . . Combat 42 | . . . . . . . . . . 5 1 . . 3 . 2 4 2 6 11 . 3 5 Autooverrided 23 | . . . . . . . . . . . . . . . . 2 2 . 4 7 . 3 5 Robot Hacks Applied 27 | . . . . . . . . . 2 5 4 . . 3 . 2 2 3 2 4 . . . no_distress 2 | . . . . . . . . . . . . . . . . 2 . . . . . . . ignore_repairs 1 | . . . . . . . . . . . 1 . . . . . . . . . . . . drop_inventory 2 | . . . . . . . . . . . 1 . . . . . . 1 . . . . . locate_stockpiles 1 | . . . . . . . . . . . 1 . . . . . . . . . . . . purge_threat 1 | . . . . . . . . . 1 . . . . . . . . . . . . . . map_route 1 | . . . . . . . . . 1 . . . . . . . . . . . . . . go_dormant 1 | . . . . . . . . . . 1 . . . . . . . . . . . . . overwrite_iff 5 | . . . . . . . . . . . . . . . . . . 1 1 3 . . . formatsys_high 13 | . . . . . . . . . . 4 1 . . 3 . . 2 1 1 1 . . . Relay Couplers Released 67 | . . . . 4 . 3 . 9 . 14 . 13 . . 8 . 10 . 6 . . . . Machine Destruction 64 | . . . . 4 . 3 . 9 . 14 . 10 . . 8 . 10 . 6 . . . . Programmers 3 | . . . . . . . . . . . . 3 . . . . . . . . . . . Attached 17 | . . . . . . . . 1 1 5 2 2 . . 1 . 1 1 2 1 . . . Merged Code Value 51 | . . . . . . . . . . . . 13 . . 6 . 11 10 11 . . . . Fabnet Peak Effective % . | . . . . . . . . . . . . . . . . . . . . . . . . Robots Rewired 12 | . . . . 3 . . 1 6 . 2 . . . . . . . . . . . . . Allies Hacked . | . . . . . . . . . . . . . . . . . . . . . . . . Hacks Repelled . | . . . . . . . . . . . . . . . . . . . . . . . . Allies | -11 -10 -9 -8 -8 -8 -8 -7 -7 -7 -7 -6 -6 -6 -5 -5 -5 -5 -4 -4 -3 -2 -2 -1 -------- Run | Jun Mat Mat Mat Gar Mat Gar Fac Gar Fac Gar Fac Gar Fac Fac Gar Fac Gar Fac Gar Res Res Tes Acc Total Allies 59 | . . . . 3 . . 1 6 . 6 1 2 . 3 . 6 4 2 6 11 . 3 5 Largest Group 6 | . . . . 3 1 . 1 6 1 3 1 2 . 2 1 5 4 3 4 1 . 1 1 Highest-Rated Group 186 | . . . . 76 20 . 32 186 30 72 29 142 . 78 41 161 150 150 186 64 . 58 58 Highest-Rated Ally 80 | . . . . 31 20 . 32 32 30 32 29 80 . 49 41 41 49 58 56 64 . 58 58 Total Orders 6 | . . . . . . . . . . . . . . . . 1 5 . . . . . . STAY 3 | . . . . . . . . . . . . . . . . . 3 . . . . . . FOLLOW 2 | . . . . . . . . . . . . . . . . . 2 . . . . . . PICKUP 1 | . . . . . . . . . . . . . . . . 1 . . . . . . . Ally Attacks 271 | . . . . 23 2 . 4 15 1 26 4 7 . 13 3 44 45 16 24 30 . 7 7 Total Damage 6887 | . . . . 496 62 . 153 670 . 378 57 309 . 232 47 746 1039 493 738 960 . 227 280 Kills 50 | . . . . 8 1 . . 5 . 2 . 4 . 3 1 6 6 5 5 3 . 1 . Allies Corrupted 1 | . . . . . . . . . . 1 . . . . . . . . . . . . . Allies Melted 1 | . . . . . . . . . . . . . . . . . . 1 . . . . . Intel | -11 -10 -9 -8 -8 -8 -8 -7 -7 -7 -7 -6 -6 -6 -5 -5 -5 -5 -4 -4 -3 -2 -2 -1 ------- Run | Jun Mat Mat Mat Gar Mat Gar Fac Gar Fac Gar Fac Gar Fac Fac Gar Fac Gar Fac Gar Res Res Tes Acc Robot Analysis Total . | . . . . . . . . . . . . . . . . . . . . . . . . Derelict Logs Recovered . | . . . . . . . . . . . . . . . . . . . . . . . . Drone Launches . | . . . . . . . . . . . . . . . . . . . . . . . . Drone Recoveries . | . . . . . . . . . . . . . . . . . . . . . . . . Exploration | -11 -10 -9 -8 -8 -8 -8 -7 -7 -7 -7 -6 -6 -6 -5 -5 -5 -5 -4 -4 -3 -2 -2 -1 ------------- Run | Jun Mat Mat Mat Gar Mat Gar Fac Gar Fac Gar Fac Gar Fac Fac Gar Fac Gar Fac Gar Res Res Tes Acc Turns Passed 25162 | . 167 922 547 1838 544 1009 666 1811 1430 959 391 2021 444 768 1009 561 1138 631 1867 1616 640 1293 2890 Spaces Moved 10757 | 1 86 393 148 733 216 406 333 627 557 602 206 833 203 291 452 254 594 320 884 573 289 450 1306 Core 2 | . . . . . . . . 2 . . . . . . . . . . . . . . . Treads 3092 | . . . . . . . . 133 264 . . . . . 278 254 594 299 313 573 289 95 . Legs 7663 | 1 86 393 148 733 216 406 333 492 293 602 206 833 203 291 174 . . 21 571 . . 355 1306 Wheels . | . . . . . . . . . . . . . . . . . . . . . . . . Hover . | . . . . . . . . . . . . . . . . . . . . . . . . Flight . | . . . . . . . . . . . . . . . . . . . . . . . . Fastest Speed 115 | 120 120 120 190 190 190 190 120 190 127 127 127 120 190 190 165 165 165 165 120 160 160 117 115 Average Speed 174 | 120 120 160 257 220 190 190 152 231 215 129 139 195 190 190 209 173 165 166 146 161 168 186 126 Slowest Speed 1400 | 120 120 190 260 260 190 260 190 1400 320 130 196 400 190 190 246 245 165 245 240 240 240 240 190 Overloaded Moves . | . . . . . . . . . . . . . . . . . . . . . . . . Propulsion Burnouts . | . . . . . . . . . . . . . . . . . . . . . . . . Robots Hopped . | . . . . . . . . . . . . . . . . . . . . . . . . Cave-ins Triggered . | . . . . . . . . . . . . . . . . . . . . . . . . Exploration Rate (%) 30 | 2 24 37 15 74 17 53 8 54 16 64 8 66 8 10 45 7 63 12 61 21 9 33 26 Regions Visited 23 Branch Regions 1 Pre-discovered Areas . | . . . . . . . . . . . . . . . . . . . . . . . . Known Exits Taken 10 | . . . 1 . 1 . 1 . 1 . 1 . . 1 . 1 . 1 . 1 1 . . Unknown Exits Taken 5 | 1 1 1 . . . . . . . . . . 1 . . . . . . . . 1 . Scrap Searched . | . . . . . . . . . . . . . . . . . . . . . . . . Spaces Dug 36 | . . . . . . . . . . . . . . . . . . . 1 4 1 6 24 Terrain Destroyed 533 | . . 2 . . . . . 21 51 10 26 103 . 80 . 7 4 1 7 61 3 69 88 Melee . | . . . . . . . . . . . . . . . . . . . . . . . . Projectile 169 | . . . . . . . . . 18 2 1 . . 3 . 2 3 1 5 15 3 28 88 AOE 360 | . . 2 . . . . . 21 33 8 25 103 . 76 . 5 1 . . 45 . 41 . Terrain Rammed . | . . . . . . . . . . . . . . . . . . . . . . . . Walls Destroyed . | . . . . . . . . . . . . . . . . . . . . . . . . Machines Disabled . | . . . . . . . . . . . . . . . . . . . . . . . . Actions | -11 -10 -9 -8 -8 -8 -8 -7 -7 -7 -7 -6 -6 -6 -5 -5 -5 -5 -4 -4 -3 -2 -2 -1 --------- Run | Jun Mat Mat Mat Gar Mat Gar Fac Gar Fac Gar Fac Gar Fac Fac Gar Fac Gar Fac Gar Res Res Tes Acc Total 14469 | . 114 572 233 854 283 515 439 847 694 726 264 1059 262 428 507 339 681 390 1217 1023 372 704 1946 Wait 1023 | . 7 61 18 9 30 20 41 8 45 20 10 48 47 29 . 26 30 14 89 209 17 73 172 Move 10727 | . 85 392 147 731 215 404 332 625 556 600 205 831 202 290 450 253 592 319 883 572 288 449 1306 Hop . | . . . . . . . . . . . . . . . . . . . . . . . . Pick Up 292 | . 2 18 11 7 3 3 10 18 8 13 6 19 5 11 13 12 5 9 24 31 9 19 36 Fast Attach 215 | . . 9 2 4 . 3 5 9 10 3 2 12 1 6 4 . 2 5 22 24 5 16 71 Attach 159 | . . 5 6 4 3 3 5 10 3 1 3 22 3 6 1 . 1 3 16 13 2 17 32 Detach 6 | . . . . . . . 1 . . . . 4 . . 1 . . . . . . . . Swap 242 | . 1 9 3 6 2 3 8 11 11 18 13 14 2 20 5 9 9 10 25 20 9 15 19 Drop 299 | . 1 19 4 7 2 2 7 12 17 16 5 10 2 16 15 15 5 12 31 37 10 16 38 Fire 1262 | . 18 59 42 43 27 61 22 70 42 33 20 74 . 48 8 23 37 18 112 112 32 92 269 Melee . | . . . . . . . . . . . . . . . . . . . . . . . . Ram . | . . . . . . . . . . . . . . . . . . . . . . . . Kick 14 | . . . . . 1 . . . 1 . . . . 2 . . . . . . . 7 3 Crush 7 | . . . . . . . . . 1 . . . . . . 1 . . . 5 . . . Escape Stasis 119 | . . . . 28 . 16 . 15 . 10 . 25 . . 10 . . . 15 . . . . Rewire 104 | . . . . 15 . . 8 69 . 12 . . . . . . . . . . . . . Trap . | . . . . . . . . . . . . . . . . . . . . . . . . Miscellaneous . | . . . . . . . . . . . . . . . . . . . . . . . . Route ------- -11/Junkyard -10/Materials -9/Materials (discovered 2 exits: *Mat / [*Min]) -8/Materials -8/Garrison (discovered 3 exits: *Mat x3) -8/Materials -8/Garrison (discovered 2 exits: *Fac x2) -7/Factory -7/Garrison (discovered 2 exits: *Fac x2) -7/Factory (discovered 3 exits: [*Sto] / [*Low] / Gar) -7/Garrison (discovered 3 exits: *Fac x3) -6/Factory -6/Garrison (discovered 2 exits: *Fac x2) -6/Factory -5/Factory (discovered 2 exits: [*Upp] / Gar) -5/Garrison (discovered 2 exits: *Fac x2) -5/Factory -5/Garrison (discovered 3 exits: *Fac x3) -4/Factory -4/Garrison (discovered 2 exits: *Res x2) -3/Research -2/Research -2/Testing -1/Access History --------- Turn | Location | Event 1 | -11/Junkyard | Discovered new exit (range 0) 1 | -11/Junkyard | Entered Materials 163 | -10/Materials | Discovered new exit (range 5) 168 | -10/Materials | Entered another Materials area 168 | -9/Materials | Evolved 2 slots: Weapon x2 505 | -9/Materials | Discovered new exit (range 13) 613 | -9/Materials | Lost 3 parts (1u2w) 907 | -9/Materials | Build established: Scavenger-Tank 1015 | -9/Materials | Discovered new exit (range 16) 1090 | -9/Materials | Entered another Materials area 1090 | -8/Materials | Evolved 2 slots: Utility x2 1217 | -8/Materials | Build established: Scavenger-Gunner 1314 | -8/Materials | Garrison activated, responded to threat 1490 | -8/Materials | Lost 4 parts (1n1u2w) 1634 | -8/Materials | Identified exit to Garrison 1637 | -8/Materials | Entered Garrison 1702 | -8/Garrison | Triggered checkpoint 1853 | -8/Garrison | Build established: Scavenger-Tank 2007 | -8/Garrison | Lost 3 parts (1u2w) 2032 | -8/Garrison | Triggered checkpoint 2126 | -8/Garrison | Triggered checkpoint 2130 | -8/Garrison | Core integrity fell below 50% 2175 | -8/Garrison | Discovered new exit (range 14) 2274 | -8/Garrison | Build established: Scavenger-Gunner 2628 | -8/Garrison | Triggered checkpoint 2756 | -8/Garrison | Discovered new exit (range 14) 2858 | -8/Garrison | Triggered checkpoint 2983 | -8/Garrison | Discovered new exit (range 12) 2998 | -8/Garrison | Installed Relay Interface Framework 3044 | -8/Garrison | Discovered new exit (range 14) 3044 | -8/Garrison | Discovered new exit (range 53) 3044 | -8/Garrison | Discovered new exit (range 74) 3056 | -8/Garrison | Triggered checkpoint 3399 | -8/Garrison | Garrison Relay disabled 3475 | -8/Garrison | Entered Materials 3475 | -8/Materials | Accompanied by 1 ally 3619 | -8/Materials | Garrison activated, responded to threat 3774 | -8/Materials | Lost 3 parts (1p1n1w) 4017 | -8/Materials | Identified exit to Garrison 4019 | -8/Materials | Entered Garrison 4090 | -8/Garrison | Triggered checkpoint 4123 | -8/Garrison | Garrison Relay disabled 4220 | -8/Garrison | Triggered checkpoint 4363 | -8/Garrison | Lost 3 parts (1n1u1w) 4450 | -8/Garrison | Core integrity fell below 20% 4534 | -8/Garrison | Discovered new exit (range 14) 4586 | -8/Garrison | Triggered checkpoint 4850 | -8/Garrison | Triggered checkpoint 4872 | -8/Garrison | Discovered new exit (range 14) 4918 | -8/Garrison | Triggered checkpoint 4968 | -8/Garrison | Expanded RIF knowledge: Zone Cloak 5028 | -8/Garrison | Entered Factory 5028 | -7/Factory | Evolved 2 slots: Propulsion x2 5101 | -7/Factory | Repaired Particle Gun 5474 | -7/Factory | Found Prototype Launcher 5477 | -7/Factory | Found Prototype Launcher 5489 | -7/Factory | Identified Rocket Array (x2) 5531 | -7/Factory | Found Rocket Array 5535 | -7/Factory | Found Rocket Array 5587 | -7/Factory | Garrison activated, responded to threat 5692 | -7/Factory | Identified exit to Garrison 5694 | -7/Factory | Entered Garrison 5738 | -7/Garrison | Triggered checkpoint 5838 | -7/Garrison | Expanded RIF knowledge: Hotswap 6004 | -7/Garrison | Garrison Relay disabled 6094 | -7/Garrison | Triggered checkpoint 6098 | -7/Garrison | Triggered checkpoint 6133 | -7/Garrison | Destroyed 7 combat bots 6142 | -7/Garrison | Lost 3 parts (1p2u) 6274 | -7/Garrison | Discovered new exit (range 8) 6288 | -7/Garrison | Triggered checkpoint 6335 | -7/Garrison | Triggered checkpoint 6438 | -7/Garrison | Lost 5 parts (3n1u1w) 6512 | -7/Garrison | Garrison Relay disabled 6578 | -7/Garrison | Build established: Scavenger-Tank 6876 | -7/Garrison | Triggered checkpoint 6977 | -7/Garrison | Discovered new exit (range 15) 7065 | -7/Garrison | Lost 8 parts (5n1u2w) 7351 | -7/Garrison | Build established: Bothacker-Mutant 7505 | -7/Garrison | Entered Factory 7505 | -7/Factory | Accompanied by 1 ally 7505 | -7/Factory | Discovered new exit (range 12) 8237 | -7/Factory | Discovered new exit (range 11) 8413 | -7/Factory | Build established: Bothacker-Tank 8642 | -7/Factory | Found Rocket Array 8789 | -7/Factory | Garrison activated, responded to threat 8875 | -7/Factory | Destroyed 9 combat bots 8934 | -7/Factory | Identified exit to Garrison 8935 | -7/Factory | Entered Garrison 8958 | -7/Garrison | Expanded RIF knowledge: Watcher Feeds 9060 | -7/Garrison | Triggered checkpoint 9144 | -7/Garrison | Build established: Scavenger-Tank 9155 | -7/Garrison | Discovered new exit (range 8) 9187 | -7/Garrison | Garrison Relay disabled 9202 | -7/Garrison | Triggered checkpoint 9298 | -7/Garrison | Triggered checkpoint 9326 | -7/Garrison | Destroyed 8 combat bots 9487 | -7/Garrison | Discovered new exit (range 10) 9529 | -7/Garrison | Garrison Relay disabled 9725 | -7/Garrison | Discovered new exit (range 10) 9804 | -7/Garrison | Triggered checkpoint 9827 | -7/Garrison | System corruption reached 10% 9844 | -7/Garrison | Garrison Relay disabled 9894 | -7/Garrison | Entered Factory 9894 | -6/Factory | Evolved 2 slots: Utility x2 10097 | -6/Factory | Found Scatter Rocket Array 10100 | -6/Factory | Found Scatter Rocket Array 10132 | -6/Factory | Garrison activated, responded to threat 10283 | -6/Factory | Identified exit to Garrison 10285 | -6/Factory | Entered Garrison 10323 | -6/Garrison | Found embedded Infiltrators 10358 | -6/Garrison | Triggered checkpoint 10430 | -6/Garrison | Lost 3 parts (2n1w) 10627 | -6/Garrison | Spotted B-75 Beast 10654 | -6/Garrison | Destroyed B-75 Beast 10681 | -6/Garrison | Build established: Bothacker-Gunner 10799 | -6/Garrison | Triggered checkpoint 10874 | -6/Garrison | Destroyed 12 combat bots 10878 | -6/Garrison | Lost 8 parts (5n2u1w) 11100 | -6/Garrison | Build established: Scavenger-Tank 11223 | -6/Garrison | Lost 5 parts (1p2u2w) 11287 | -6/Garrison | Garrison Relay disabled 11511 | -6/Garrison | Discovered new exit (range 12) 11590 | -6/Garrison | Build established: Bothacker-Gunner 11643 | -6/Garrison | Lost 4 parts (1p1n2w) 11822 | -6/Garrison | Expanded RIF knowledge: Code Merge 11839 | -6/Garrison | Garrison Relay disabled 11880 | -6/Garrison | Discovered new exit (range 12) 12112 | -6/Garrison | Core integrity fell below 50% 12137 | -6/Garrison | Garrison Relay disabled 12306 | -6/Garrison | Entered Factory 12423 | -6/Factory | Lost 3 parts (1n1u1w) 12637 | -6/Factory | Discovered new exit (range 15) 12727 | -6/Factory | Fabricated Hpw. Shock Rifle (x1) 12750 | -6/Factory | Entered another Factory area 12750 | -5/Factory | Evolved 2 slots: Power x1, Utility x1 13165 | -5/Factory | Garrison activated, responded to threat 13430 | -5/Factory | Discovered new exit (range 11) 13482 | -5/Factory | Identified exit to Garrison 13518 | -5/Factory | Entered Garrison 13518 | -5/Garrison | Accompanied by 1 ally 13543 | -5/Garrison | Warlord forces raided the area 13554 | -5/Garrison | Triggered checkpoint 13602 | -5/Garrison | Triggered checkpoint 13611 | -5/Garrison | Triggered checkpoint 13612 | -5/Garrison | Garrison Relay disabled 13645 | -5/Garrison | Heavy support dispatched to Factory 13674 | -5/Garrison | Triggered checkpoint 13676 | -5/Garrison | Triggered checkpoint 13796 | -5/Garrison | Triggered checkpoint 13917 | -5/Garrison | System corruption reached 10% 13937 | -5/Garrison | Build established: Bothacker-Tank 14002 | -5/Garrison | Expanded RIF knowledge: Autooverride 14014 | -5/Garrison | Discovered new exit (range 13) 14226 | -5/Garrison | Garrison Relay disabled 14418 | -5/Garrison | Triggered checkpoint 14502 | -5/Garrison | Discovered new exit (range 10) 14527 | -5/Garrison | Entered Factory 14527 | -5/Factory | Accompanied by 1 ally 14873 | -5/Factory | Allied Derelicts emerged from ambush trap array 15019 | -5/Factory | Garrison activated, responded to threat 15039 | -5/Factory | Fabricated A-15 Conveyor (x1) 15058 | -5/Factory | Identified exit to Garrison 15079 | -5/Factory | Fabricated Point Defense System? 15088 | -5/Factory | Entered Garrison 15088 | -5/Garrison | Accompanied by 4 allies 15265 | -5/Garrison | Garrison Relay disabled 15286 | -5/Garrison | Triggered checkpoint 15328 | -5/Garrison | Triggered checkpoint 15347 | -5/Garrison | P-70 Sage assimilated allied BF-4EV(g) 15438 | -5/Garrison | Destroyed 8 combat bots 15478 | -5/Garrison | Discovered new exit (range 12) 15522 | -5/Garrison | Triggered checkpoint 15548 | -5/Garrison | Garrison Relay disabled 15690 | -5/Garrison | Triggered checkpoint 15802 | -5/Garrison | Triggered checkpoint 15824 | -5/Garrison | Garrison Relay disabled 15853 | -5/Garrison | Build established: Botlord-Tank 15908 | -5/Garrison | Triggered checkpoint 15918 | -5/Garrison | Discovered new exit (range 10) 16114 | -5/Garrison | Triggered checkpoint 16175 | -5/Garrison | Expanded RIF knowledge: Autooverride 16208 | -5/Garrison | Discovered new exit (range 11) 16226 | -5/Garrison | Entered Factory 16226 | -4/Factory | Accompanied by 2 allies 16226 | -4/Factory | Evolved 2 slots: Utility x2 16293 | -4/Factory | Found Exp. System Shield 16855 | -4/Factory | Identified exit to Garrison 16857 | -4/Factory | Entered Garrison 16857 | -4/Garrison | Accompanied by 3 allies 16946 | -4/Garrison | Triggered checkpoint 17032 | -4/Garrison | Garrison Relay disabled 17147 | -4/Garrison | Triggered checkpoint 17155 | -4/Garrison | Spotted B-86 Titan 17302 | -4/Garrison | Lost 5 parts (1p2u2w) 17455 | -4/Garrison | Lost 6 parts (3u3w) 17484 | -4/Garrison | System corruption reached 10% 17485 | -4/Garrison | Destroyed B-86 Titan 17512 | -4/Garrison | Lost 4 parts (2p1n1w) 17737 | -4/Garrison | Discovered new exit (range 15) 17882 | -4/Garrison | Triggered checkpoint 18264 | -4/Garrison | Triggered checkpoint 18401 | -4/Garrison | Discovered new exit (range 12) 18458 | -4/Garrison | Triggered checkpoint 18556 | -4/Garrison | Garrison Relay disabled 18724 | -4/Garrison | Entered Research 18724 | -3/Research | Accompanied by 1 ally 18724 | -3/Research | Evolved 2 slots: Power x1, Utility x1 18972 | -3/Research | Spotted B-86 Titan 18974 | -3/Research | Destroyed B-86 Titan 19146 | -3/Research | P-80 Master assimilated allied Warden 8a 19474 | -3/Research | First assault squad dispatched 19636 | -3/Research | Destroyed 7 combat bots 19703 | -3/Research | Destroyed 11 combat bots 19757 | -3/Research | System corruption reached 10% 19845 | -3/Research | Lost 5 parts (1p1n2u1w) 20189 | -3/Research | Build established: Scavenger-Mutant 20221 | -3/Research | Discovered new exit (range 28) 20338 | -3/Research | Identified exit to Research 20340 | -3/Research | Entered another Research area 20340 | -2/Research | Evolved 2 slots: Utility x2 20414 | -2/Research | Spotted B-90 Cyclops 20451 | -2/Research | Destroyed B-90 Cyclops 20786 | -2/Research | Spotted B-90 Cyclops 20847 | -2/Research | Build established: Scavenger-Gunner 20859 | -2/Research | Discovered new exit (range 8) 20876 | -2/Research | Garrison activated, responded to threat 20980 | -2/Research | Identified exit to Testing 20980 | -2/Research | Entered Testing 21230 | -2/Testing | First assault squad dispatched 21288 | -2/Testing | Lost 4 parts (1u3w) 21547 | -2/Testing | Build established: Scavenger-Tank 21690 | -2/Testing | System corruption reached 10% 21759 | -2/Testing | Garrison activated, responded to threat 21795 | -2/Testing | Destroyed 7 combat bots 21811 | -2/Testing | Lost 5 parts (3u2w) 21892 | -2/Testing | Lost 3 parts (1u2w) 22049 | -2/Testing | System corruption reached 30% 22052 | -2/Testing | Lost 5 parts (2p1n1u1w) 22171 | -2/Testing | Discovered new exit (range 14) 22228 | -2/Testing | Found Prototype Energy Cannon 22228 | -2/Testing | Identified Null Cannon 22273 | -2/Testing | Entered Access 22273 | -1/Access | Evolved 2 slots: Propulsion x2 22523 | -1/Access | First assault squad dispatched 22611 | -1/Access | Lost 3 parts (1n2u) 22755 | -1/Access | Garrison activated, responded to threat 22855 | -1/Access | Lost 7 parts (2p1n2u2w) 22895 | -1/Access | Destroyed 7 combat bots 22964 | -1/Access | Build established: Scavenger-Gunner 23094 | -1/Access | System corruption reached 10% 23102 | -1/Access | Lost 8 parts (2p1n3u2w) 23196 | -1/Access | System corruption reached 30% 23207 | -1/Access | Lost 5 parts (1n1u3w) 23935 | -1/Access | Garrison activated, responded to threat 24028 | -1/Access | Core integrity fell below 50% 24038 | -1/Access | Destroyed 11 combat bots 24122 | -1/Access | Lost 13 parts (1p3n4u5w) 24505 | -1/Access | Lost 5 parts (1p1n2u1w) 25070 | -1/Access | Lost 3 parts (2u1w) 25102 | -1/Access | Found Unknown Launcher 25102 | -1/Access | Identified Gamma Bomb Array 25105 | -1/Access | Found Gamma Bomb Array 25110 | -1/Access | Core integrity fell below 20% 25132 | -1/Access | High security lockdown imminent 25163 | -1/Access | Destroyed by H-88 Terminator with KE Penetrator Last Messages --------------- 25156_ K-01 Serf collects debris. 25156_ Slug penetrates Wall. 25159_ Wall collapses. 25159_ Dropped Lgt. Quantum Reactor. 25159_ Slug penetrates Wall. 25159_ Penetrated by Slug. 25160_ Slug penetrates Wall. 25160_ Acquired 70 matter. 25160_ K-01 Serf collects debris. 25161_ Penetrated by Slug. 25161_ I-47 Archangel suffers critical hit (Destroy). 25161_ I-47 Archangel destroyed. 25163_ Slug penetrates Wall. 25163_ Centrium Leg destroyed. 25163_ Slug penetrates Wall. 25163_ Penetrated by Slug. [Achievement: 30k Club] [Achievement: 40k Club] [Achievement: 50k Club] [Achievement: Tester] Map ----- +----------------------------------------------------+ | ?????????????????????????????????????????????????? | | ?????????????????????????????????????????????????? | | ?????????????????????????????????????????????????? | | ?????????????????????????????????????????????????? | | ?????????????????????????????????????????????????? | | ?????????????????????????????????????????????????? | | ?????????????????????????????????????????????????? | | ?????????????????????????????????????????????????? | | ?????????????????????????????????????????????????? | | ?????????????????????????????????????????????????? | | ?????????????????????????????????????????????????? | | ??????????????? ?????????????????????????????????? | | ??????????????+ ?????????????????????????????????? | | ??????????????# ????????????????????????????????? | | ??????????????# ????????????????????????????????? | | ??????????????# ????????????????????????????????? | | ??????????????#% ????????????????????????????????? | | ?????????????##% ????????????##??????????????????? | | ?????????????#" ?########### ##?????????????????? | | ??????????????" ## """T""" #?????????????????? | | ?????????????## ## """ """ #?????????????????? | | ?????????????##[=##%!k #?????????????????? | | ?????????????##%%##%=! %% #?????????????????? | | ???## #######%!hh#!%[! #?????????????????? | | ??+ !|th;%=[%[!! * #?????????????????? | | ????# %!=%hh![[![ @!% #?????????????????? | | ????#+########%=!u#%=%=]] = #?????????????????? | | ?????????????##%=#[[=[!=] #?????????????????? | | ??????????????#%!##===]][ #?????????????????? | | ?????????????##* ##%= * ] #?????????????????? | | ?????????????##%!##= ] #?????????????????? | | ?????????????##*=###############?????????????????? | | ?????????????##=!|% % #?????????????????? | | ??????????????# % #?????????????????? | | ??????????????###############+###########????????? | | ??????????????#### ## % #????????? | | ################## ##= "#???????? | | #! ## ""G"" ##???????? | | # ## " " #????????? | | " == # ## " " #????????? | | """ = # ## * #????????? | | """ # ##! #????????? | | " # ## #????????? | | # ## [= #????????? | | # ![ =##! =/ #????????? | | #+######+###########+######" ! ##???????? | | %% % %%% ! ##???????? | | %% ##=#%#############???????? | | % %%#%## #???????????????????? | | ####### ###/########/#######???????????????????? | +----------------------------------------------------+ Best States ------------- Heat Dissipation 147 Energy Generation 65 Energy Capacity 1430 Matter Stores 300 Matter Capacity 300 Sight Range 16 Terrain Scan Density 10 Jamming Range 14 Power Amplification 30 Armor Coverage 900 Core Shielding 30 Propulsion Shielding 33 Weapon Cycling 15 Phase Shifting 15 Evasion (%) 65 Targeting Accuracy 14 Launcher Accuracy 40 Target Analysis 12 Core Analysis 6 Recoil Reduction 6 Energy Filtering 30 Particle Charging 15 Offensive Hacking 12 Defensive Hacking 16 Relay Coupler Types 4 Relay Coupler Value 100 Item Schematics ----------------- Imp. Remote Datajack | -3/Research | Scanalyzed Imp. Proton Missile Launcher | -3/Research | Scanalyzed Robot Schematics ------------------ None Fabricated ------------ Hpw. Shock Rifle | x1 | -6/Factory | Preloaded A-15 Conveyor | x1 | -5/Factory | Preloaded Point Defense System | x2 | -5/Factory | Preloaded Alien Tech Used ----------------- None Achievements -------------- 30k Club 40k Club 50k Club Knowing Is Half The Battle Prolific Hacker Tester Z1$+NX3F=JRE3_ZNQR Challenges ------------ None Game ------ Seed DiametricLightpackMapper Manual? 0 Play Time 04:21:05 Cumulative 61.2 hours Start 2023.03.08 @ 15:44:27 End 2023.03.10 @ 18:16:07 Sessions 7 Manual Loads 0 Difficulty Rogue Special Mode None Game No. 62 Rogue 62 Adventurer 0 Explorer 0 Win Type - Total 0 Types 0/0/0/0/0/0/0/0/0 Lore% 39 Gallery% 51 Achievement% 46 Wizard Run 0 Options --------- ASCII 0 Keyboard 0 Movement Mouse Keybinds 0 Fullscreen 1 Font 18/TerminusBold Map View 76x50 Tactical HUD 1 Map Filters NONE Filters NONE Steam 1 RUN: 556f8b73-4105-418b-9e1a-c390f637e468